fUST/lending_fUST_20250817
["ID","MTS","AMOUNT","RATE_DAILY","PERIOD"]
[379843155,1755423041293,-1365.75,0.00019845,2]
[379843157,1755423041302,-480.0,0.00019845,2]
[379843159,1755423041312,-480.0,0.00019845,2]
[379843161,1755423041322,-480.0,0.00019845,2]
[379843163,1755423041331,-480.0,0.00019845,2]
[379843165,1755423041340,-704.44,0.00019845,2]
[379843167,1755423041350,-480.0,0.00019845,2]
[379843169,1755423041359,-480.0,0.00019845,2]
[379843171,1755423041368,-480.0,0.00019845,2]
[379843173,1755423041378,-538.61,0.00019845,2]
[379843175,1755423041387,-480.0,0.00019845,2]
[379843177,1755423041396,-480.0,0.00019845,2]
[379843179,1755423041405,-858.38,0.00019845,2]
[379843181,1755423041414,-527.31,0.00019845,2]
[379843183,1755423041423,-480.0,0.00019845,2]
[379843184,1755423041432,-480.0,0.00019845,2]
[379843186,1755423041441,-2246.85,0.00019845,2]
[379843188,1755423041450,-710.89,0.00019845,2]
[379843190,1755423041460,-480.0,0.00019845,2]
[379843192,1755423041470,-481.88,0.00019845,2]
[379843194,1755423041479,-480.0,0.00019845,2]
[379843196,1755423041488,-480.0,0.00019845,2]
[379843198,1755423041498,-460.0,0.00019845,2]
[379843200,1755423041507,-616.44742236,0.00019845,2]
[379843202,1755423041516,-507.3,0.00019845,2]
[379843204,1755423041524,-366.84940194,0.00019845,2]
[379843206,1755423041534,-546.53,0.00019845,2]
[379843208,1755423041543,-480.0,0.00019845,2]
[379843210,1755423041552,-500.0,0.00019845,2]
[379843212,1755423041562,-480.0,0.00019845,2]
[379843213,1755423041572,-514.25739513,0.00019845,2]
[379843215,1755423041581,-420.0,0.00019845,2]
[379843217,1755423041590,-552.88,0.00019845,2]
[379843219,1755423041599,-266.07865685,0.00019845,2]
[379843221,1755423041608,-480.0,0.00019845,2]
[379843223,1755423041617,-480.0,0.00019845,2]
[379843225,1755423041626,-234.52052485,0.00019845,2]
[379843227,1755423041635,-4226.01,0.00019845,2]
[379843229,1755423041644,-480.0,0.00019845,2]
[379843231,1755423041654,-480.0,0.00019846,2]
[379843233,1755423041663,-182.99,0.00019846,2]
[379843235,1755423041673,-480.0,0.00019846,2]
[379843237,1755423041682,-480.0,0.00019846,2]
[379843239,1755423041691,-480.0,0.00019846,2]
[379843241,1755423041700,-480.0,0.00019846,2]
[379843243,1755423041710,-480.0,0.00019846,2]
[379843245,1755423041719,-480.0,0.00019846,2]
[379843247,1755423041728,-480.0,0.00019846,2]
[379843249,1755423041737,-480.0,0.00019846,2]
[379843251,1755423041746,-2585.95,0.00019846,2]
[379843253,1755423041754,-586.94,0.00019846,2]
[379843255,1755423041763,-480.0,0.00019846,2]
[379843257,1755423041772,-4061.86,0.00019846,2]
[379843259,1755423041781,-321.95,0.00019846,2]
[379843261,1755423041790,-610.31,0.00019846,2]
[379843263,1755423041799,-225.19,0.00019846,2]
[379843265,1755423041808,-480.0,0.00019847,2]
[379843267,1755423041818,-434.1953514,0.00019847,2]
[379843268,1755423041827,-480.0,0.00019847,2]
[379843270,1755423041836,-480.0,0.00019847,2]
[379843272,1755423041846,-541.825,0.00019847,2]
[379843274,1755423041855,-484.24,0.00019847,2]
[379843276,1755423041865,-296.5,0.00019847,2]
[379843278,1755423041874,-480.0,0.00019847,2]
[379843280,1755423041883,-480.0,0.00019847,2]
[379843282,1755423041891,-480.0,0.00019847,2]
[379843284,1755423041900,-480.0,0.00019847,2]
[379843286,1755423041910,-480.0,0.00019847,2]
[379843288,1755423041919,-480.0,0.00019847,2]
[379843290,1755423041928,-1039.63,0.00019847,2]
[379843292,1755423041937,-151.0,0.00019848,2]
[379843294,1755423041946,-2064.093986,0.00019848,2]
[379843296,1755423041955,-2064.093986,0.00019848,2]
[379843298,1755423041964,-1844.13,0.00019848,2]
[379843300,1755423041974,-288.62,0.00019849,2]
[379843302,1755423041983,-151.0,0.0001985,2]
[379843304,1755423041992,-233.732038,0.0001985,2]
[379843306,1755423042001,-233.732038,0.0001985,2]
[379843308,1755423042011,-212.932525,0.0001985,2]
[379843310,1755423042019,-212.932525,0.0001985,2]
[379843312,1755423042028,-3315.38515886,0.000199,2]
[379843314,1755423042038,-200.0,0.00019963,20]
[379843316,1755423042047,-200.0,0.00019963,20]
[379843318,1755423042056,-200.0,0.00019963,20]
[379843320,1755423042065,-200.0,0.00019963,20]
[379843322,1755423042075,-200.0,0.00019963,20]
[379843324,1755423042084,-200.0,0.00019963,20]
[379843326,1755423042093,-200.0,0.00019963,20]
[379843328,1755423042102,-200.0,0.00019963,20]
[379843330,1755423042112,-200.0,0.00019963,20]
[379843332,1755423042123,-200.0,0.00019963,20]
[379843334,1755423042134,-74234.70029473,0.0001999,2]
[379843336,1755423042144,-500.0,0.0002,2]
[379843338,1755423042153,-1279.47915132,0.0002,2]
[379843340,1755423042162,-417.15472785,0.00020079,2]
[379843341,1755423042172,-528.48506731,0.00020079,2]
[379843343,1755423042181,-160.0,0.00020079,2]
[379843345,1755423042191,-215.71995163,0.00020079,2]
[379843347,1755423042201,-160.0,0.00020079,2]
[379843349,1755423042211,-160.0,0.00020079,2]
[379843351,1755423042221,-160.0,0.00020079,2]
[379843353,1755423042230,-375.77065697,0.00020079,2]
[379843355,1755423042240,-12682.46447135,0.00020079,2]
[379843357,1755423042249,-232.1512529,0.00020079,2]
[379843359,1755423042259,-160.0,0.00020079,2]
[379843362,1755423042269,-843.71309931,0.00020079,2]
[379843365,1755423042278,-160.0,0.00020079,2]
[379843368,1755423042288,-500.0,0.00020082,2]
[379843370,1755423042298,-431.9864578,0.00020082,2]
[379843373,1755423042307,-431.9864578,0.00020082,2]
[379843375,1755423042317,-431.9864578,0.00020082,2]
[379843377,1755423042327,-370.4213767,0.00020082,2]
[379843379,1755423042336,-998.0,0.00020085,2]
[379843382,1755423042345,-431.9864578,0.000201,2]
[379843384,1755423042354,-480.0,0.00020118,2]
[379843386,1755423042363,-1033.65,0.00020118,2]
[379843388,1755423042372,-168.89,0.00020118,2]
[379843390,1755423042381,-480.0,0.00020119,2]
[379843392,1755423042390,-480.0,0.00020119,2]
[379843394,1755423042400,-577.37,0.00020119,2]
[379843396,1755423042409,-480.0,0.00020119,2]
[379843398,1755423042418,-480.0,0.00020119,2]
[379843400,1755423042428,-480.77,0.00020119,2]
[379843402,1755423042437,-480.0,0.00020119,2]
[379843405,1755423042446,-480.0,0.00020119,2]
[379843408,1755423042454,-1265.45,0.00020119,2]
[379843409,1755423042463,-480.0,0.00020119,2]
[379843411,1755423042473,-671.63,0.00020119,2]
[379843413,1755423042482,-480.0,0.00020119,2]
[379843415,1755423042491,-1207.33,0.00020119,2]
[379843417,1755423042500,-480.0,0.00020119,2]
[379843419,1755423042511,-480.0,0.00020119,2]
[379843421,1755423042520,-480.0,0.00020119,2]
[379843424,1755423042529,-864.62,0.00020119,2]
[379843426,1755423042540,-1365.75,0.00020119,2]
[379843427,1755423042549,-368.97,0.00020119,2]
[379843429,1755423042559,-480.0,0.00020119,2]
[379843431,1755423042568,-480.0,0.00020119,2]
[379843433,1755423042577,-704.44,0.00020119,2]
[379843435,1755423042586,-501.29,0.00020119,2]
[379843437,1755423042596,-236.31,0.00020119,2]
[379843439,1755423042605,-569.37,0.00020119,2]
[379843441,1755423042615,-858.38,0.00020119,2]
[379843443,1755423042624,-480.0,0.00020119,2]
[379843445,1755423042634,-2246.85,0.00020119,2]
[379843460,1755423042763,-710.89,0.00020119,2]
[379843462,1755423042773,-481.88,0.00020119,2]
[379843464,1755423042782,-480.0,0.00020119,2]
[379843466,1755423042795,-480.0,0.00020119,2]
[379843468,1755423042804,-480.0,0.00020119,2]
[379843470,1755423042813,-480.0,0.00020119,2]
[379843472,1755423042822,-480.0,0.00020119,2]
[379843474,1755423042831,-4226.01,0.00020119,2]
[379843476,1755423042840,-480.0,0.0002012,2]
[379843478,1755423042850,-480.0,0.0002012,2]
[379843480,1755423042859,-480.0,0.0002012,2]
[379843482,1755423042868,-505.81,0.0002012,2]
[379843484,1755423042878,-480.0,0.0002012,2]
[379843486,1755423042887,-480.0,0.0002012,2]
[379843488,1755423042897,-480.0,0.0002012,2]
[379843490,1755423042907,-2585.95,0.0002012,2]
[379843492,1755423042916,-4061.86,0.0002012,2]
[379843494,1755423042926,-610.31,0.0002012,2]
[379843496,1755423042936,-151.0,0.00020121,2]
[379843498,1755423042945,-151.0,0.00020121,2]
[379843500,1755423042955,-233.732038,0.00020121,2]
[379843502,1755423042965,-233.732038,0.00020121,2]
[379843504,1755423042974,-212.932525,0.00020121,2]
[379843506,1755423042984,-212.932525,0.00020121,2]
[379843508,1755423042993,-480.0,0.00020121,2]
[379843509,1755423043003,-1000.0,0.00020121,2]
[379843510,1755423043013,-1000.0,0.00020121,2]
[379843511,1755423043023,-1000.0,0.00020121,2]
[379843512,1755423043032,-1000.0,0.00020121,2]
[379843513,1755423043043,-1000.0,0.00020121,2]
[379843514,1755423043052,-1000.0,0.00020121,2]
[379843515,1755423043061,-1000.0,0.00020121,2]
[379843516,1755423043071,-1000.0,0.00020121,2]
[379843517,1755423043080,-1000.0,0.00020121,2]
[379843518,1755423043089,-1000.0,0.00020121,2]
[379843520,1755423043099,-1000.0,0.00020121,2]
[379843522,1755423043108,-923.891488,0.00020121,2]
[379843524,1755423043119,-169.37,0.00020121,2]
[379843526,1755423043132,-484.24,0.00020121,2]
[379843529,1755423043142,-2064.093986,0.00020121,2]
[379843530,1755423043152,-2064.093986,0.00020121,2]
[379843533,1755423043162,-341.62,0.00020121,2]
[379843535,1755423043172,-480.0,0.00020121,2]
[379843537,1755423043181,-480.0,0.00020121,2]
[379843539,1755423043191,-480.0,0.00020121,2]
[379843541,1755423043201,-480.0,0.00020121,2]
[379843543,1755423043213,-1039.63,0.00020121,2]
[379843545,1755423043222,-1844.13,0.00020122,2]
[379843547,1755423043231,-533.128429,0.00020124,2]
[379843548,1755423043241,-533.128429,0.00020124,2]
[379843550,1755423043250,-175.815399,0.00020147,2]
[379843552,1755423043260,-419.948819,0.00020187,2]
[379843555,1755423043269,-431.9864578,0.000202,2]
[379843557,1755423043280,-431.9864578,0.000202,2]
[379843559,1755423043293,-431.9864578,0.000202,2]
[379843561,1755423043305,-431.9864578,0.000202,2]
[379843563,1755423043315,-431.9864578,0.000202,2]
[379843565,1755423043325,-431.9864578,0.000202,2]
[379843567,1755423043334,-800.0,0.00020212,2]
[379843569,1755423043344,-998.0,0.00020227,2]
[379843571,1755423043362,-800.0,0.00020282,2]
[379843573,1755423043371,-151.0,0.00020282,2]
[379843575,1755423043382,-431.9864578,0.000203,2]
[379843577,1755423043391,-431.9864578,0.000203,2]
[379843579,1755423043400,-341.4,0.00020313,2]
[379843581,1755423043410,-153.0,0.00020356,2]
[379843583,1755423043419,-177.0,0.00020363,2]
[379843585,1755423043429,-303.94834553,0.00020392,2]
[379843587,1755423043438,-1033.65,0.00020392,2]
[379843589,1755423043448,-480.0,0.00020393,2]
[379843591,1755423043458,-480.0,0.00020393,2]
[379843593,1755423043467,-577.37,0.00020393,2]
[379843595,1755423043477,-480.0,0.00020393,2]
[379843597,1755423043486,-271.06,0.00020393,2]
[379843599,1755423043496,-480.77,0.00020393,2]
[379843601,1755423043506,-480.0,0.00020393,2]
[379843604,1755423043515,-480.0,0.00020393,2]
[379843605,1755423043524,-1265.45,0.00020393,2]
[379843607,1755423043534,-480.0,0.00020393,2]
[379843609,1755423043544,-671.63,0.00020393,2]
[379843611,1755423043554,-480.0,0.00020393,2]
[379843613,1755423043563,-1207.33,0.00020393,2]
[379843615,1755423043573,-548.88122693,0.00020393,2]
[379843617,1755423043582,-480.0,0.00020393,2]
[379843619,1755423043591,-480.0,0.00020393,2]
[379843621,1755423043601,-864.62,0.00020393,2]
[379843623,1755423043613,-1365.75,0.00020393,2]
[379843626,1755423043622,-480.0,0.00020393,2]
[379843628,1755423043631,-480.0,0.00020393,2]
[379843630,1755423043640,-704.44,0.00020393,2]
[379843632,1755423043650,-858.38,0.00020393,2]
[379843634,1755423043659,-2246.85,0.00020393,2]
[379843636,1755423043668,-710.89,0.00020393,2]
[379843638,1755423043678,-481.88,0.00020393,2]
[379843640,1755423043689,-480.0,0.00020393,2]
[379843642,1755423043699,-480.0,0.00020393,2]
[379843644,1755423043707,-480.0,0.00020393,2]
[379843646,1755423043717,-342.65,0.00020393,2]
[379843648,1755423043726,-480.0,0.00020393,2]
[379843650,1755423043735,-4226.01,0.00020393,2]
[379843652,1755423043744,-151.0,0.00020394,2]
[379843654,1755423043753,-480.0,0.00020394,2]
[379843656,1755423043762,-480.0,0.00020394,2]
[379843658,1755423043771,-480.0,0.00020394,2]
[379843660,1755423043780,-2064.093986,0.00020394,2]
[379843662,1755423043790,-2064.093986,0.00020394,2]
[379843664,1755423043799,-480.0,0.00020394,2]
[379843666,1755423043808,-487.93,0.00020394,2]
[379843668,1755423043817,-480.0,0.00020394,2]
[379843670,1755423043827,-151.0,0.00020394,2]
[379843672,1755423043836,-151.0,0.00020394,2]
[379843674,1755423043845,-2585.95,0.00020394,2]
[379843676,1755423043854,-151.0,0.00020394,2]
[379843678,1755423043863,-151.0,0.00020394,2]
[379843679,1755423043872,-151.0,0.00020394,2]
[379843681,1755423043881,-151.0,0.00020394,2]
[379843683,1755423043890,-4061.86,0.00020394,2]
[379843685,1755423043899,-165.031108,0.00020394,2]
[379843687,1755423043908,-610.31,0.00020394,2]
[379843689,1755423043917,-151.0,0.00020395,2]
[379843691,1755423043926,-233.732038,0.00020395,2]
[379843693,1755423043935,-233.732038,0.00020395,2]
[379843695,1755423043944,-212.932525,0.00020395,2]
[379843697,1755423043953,-212.932525,0.00020395,2]
[379843699,1755423043962,-225.01477465,0.00020395,2]
[379843701,1755423043971,-484.24,0.00020395,2]
[379843703,1755423043980,-372.9417303,0.00020395,2]
[379843705,1755423043990,-480.0,0.00020395,2]
[379843707,1755423043999,-480.0,0.00020395,2]
[379843709,1755423044009,-480.0,0.00020395,2]
[379843711,1755423044018,-1039.63,0.00020395,2]
[379843713,1755423044027,-151.0,0.00020396,2]
[379843715,1755423044037,-151.0,0.00020396,2]
[379843717,1755423044046,-151.0,0.00020396,2]
[379843719,1755423044055,-500.0,0.00020396,2]
[379843722,1755423044069,-208.24960438,0.00020396,2]
[379843724,1755423044078,-261.71480021,0.00020396,2]
[379843726,1755423044087,-151.0,0.00020396,2]
[379843728,1755423044097,-500.0,0.00020396,2]
[379843730,1755423044106,-500.0,0.00020396,2]
[379843732,1755423044115,-151.0,0.00020396,2]
[379843734,1755423044126,-151.0,0.00020396,2]
[379843736,1755423044137,-151.0,0.00020396,2]
[379843738,1755423044146,-152.33747354,0.00020396,2]
[379843740,1755423044155,-151.0,0.00020396,2]
[379843742,1755423044165,-151.0,0.00020396,2]
[379843744,1755423044175,-1844.13,0.00020396,2]
[379843745,1755423044184,-1317.0,0.00020396,2]
[379843747,1755423044195,-151.0,0.00020396,2]
[379843750,1755423044209,-158.05277991,0.00020396,2]
[379843751,1755423044220,-151.0,0.00020396,2]
[379843753,1755423044229,-151.0,0.00020396,2]
[379843755,1755423044238,-151.0,0.00020396,2]
[379843757,1755423044248,-175.815399,0.00020397,2]
[379843759,1755423044257,-431.9864578,0.000204,2]
[379843761,1755423044266,-431.9864578,0.000204,2]
[379843764,1755423044277,-696.45328683,0.000204,2]
[379843766,1755423044287,-189.70505889,0.000204,2]
[379843768,1755423044296,-160.0,0.000204,2]
[379843770,1755423044306,-800.0,0.00020412,2]
[379843772,1755423044315,-533.128429,0.00020418,2]
[379843774,1755423044324,-533.128429,0.00020418,2]
[379843776,1755423044334,-478.0,0.00020435,2]
[379843778,1755423044343,-341.4,0.00020453,2]
[379843780,1755423044353,-500.0,0.00020473,2]
[379843782,1755423044362,-500.0,0.00020473,2]
[379843784,1755423044371,-500.0,0.00020473,2]
[379843786,1755423044380,-500.0,0.00020473,2]
[379843787,1755423044390,-500.0,0.00020473,2]
[379843789,1755423044399,-500.0,0.00020473,2]
[379843791,1755423044409,-500.0,0.00020473,2]
[379843793,1755423044418,-500.0,0.00020473,2]
[379843795,1755423044427,-500.0,0.00020473,2]
[379843797,1755423044441,-500.0,0.00020473,2]
[379843799,1755423044459,-500.0,0.00020473,2]
[379843801,1755423044478,-500.0,0.00020473,2]
[379843803,1755423044499,-500.0,0.00020473,2]
[379843805,1755423044519,-500.0,0.00020473,2]
[379843807,1755423044537,-500.0,0.00020473,2]
[379843809,1755423044558,-500.0,0.00020473,2]
[379843811,1755423044579,-502.29518042,0.00020473,2]
[379843813,1755423044599,-501.25711225,0.00020473,2]
[379843816,1755423044620,-500.0,0.00020473,2]
[379843818,1755423044640,-500.0,0.00020473,2]
[379843819,1755423044661,-500.0,0.00020473,2]
[379843821,1755423044680,-500.0,0.00020473,2]
[379843823,1755423044700,-501.23763847,0.00020473,2]
[379843825,1755423044720,-500.0,0.00020473,2]
[379843827,1755423044742,-500.0,0.00020473,2]
[379843829,1755423044759,-502.13602325,0.00020473,2]
[379843831,1755423044768,-500.0,0.00020473,2]
[379843833,1755423044777,-428.16216798,0.00020473,2]
[379843836,1755423044787,-500.0,0.00020473,2]
[379843838,1755423044799,-394.04902133,0.00020473,2]
[379843840,1755423044808,-500.64506414,0.00020473,2]
[379843842,1755423044817,-500.0,0.00020473,2]
[379843844,1755423044826,-500.0,0.00020473,2]
[379843846,1755423044835,-500.0,0.00020473,2]
[379843848,1755423044844,-500.71946824,0.00020473,2]
[379843850,1755423044853,-500.0,0.00020473,2]
[379843852,1755423044862,-500.0,0.00020473,2]
[379843854,1755423044871,-500.0,0.00020473,2]
[379843856,1755423044880,-500.0,0.00020473,2]
[379843858,1755423044889,-500.0,0.00020473,2]
[379843860,1755423044898,-500.0,0.00020473,2]
[379843861,1755423044907,-500.0,0.00020473,2]
[379843863,1755423044917,-500.0,0.00020473,2]
[379843866,1755423044927,-158.2102775,0.00020473,2]
[379843868,1755423044937,-500.0,0.00020473,2]
[379843869,1755423044945,-500.0,0.00020473,2]
[379843871,1755423044955,-500.0,0.00020473,2]
[379843873,1755423044965,-500.0,0.00020473,2]
[379843875,1755423044973,-500.0,0.00020473,2]
[379843877,1755423044982,-500.0,0.00020473,2]
[379843879,1755423044991,-502.45168872,0.00020473,2]
[379843881,1755423045001,-500.0,0.00020473,2]
[379843883,1755423045010,-500.48515569,0.00020473,2]
[379843885,1755423045019,-500.0,0.00020473,2]
[379843887,1755423045028,-500.0,0.00020473,2]
[379843889,1755423045037,-517.02090165,0.00020473,2]
[379843891,1755423045047,-500.0,0.00020473,2]
[379843893,1755423045056,-151.0,0.00020473,2]
[379843895,1755423045065,-233.732038,0.00020473,2]
[379843897,1755423045074,-233.732038,0.00020473,2]
[379843899,1755423045083,-2064.093986,0.00020473,2]
[379843901,1755423045092,-2064.093986,0.00020473,2]
[379843903,1755423045101,-142137.8120227,0.000205,2]
[379843913,1755423045187,-510.63,0.00019845,2]
[379843915,1755423045196,-510.63,0.00020119,2]
[379843917,1755423045205,-510.63,0.00020393,2]
[379843919,1755423045215,-33083.96017771,0.000205,2]
[379843921,1755423045228,-3437.98496567,0.000205,2]
[379843924,1755423045240,-27.39599435,0.000205,2]
[379843926,1755423045251,-151.0,0.000205,2]
[379843928,1755423045260,-151.0,0.000205,2]
[379843930,1755423045269,-126.14070977,0.000205,2]
[379843987,1755423045776,-480.0,0.00019571,2]
[379843989,1755423045786,-562.09551609,0.000205,2]
[379844007,1755423045940,494.45757984,0.00019471,2]
[379844028,1755423046158,-480.0,0.0001957,2]
[379844030,1755423046169,-480.0,0.00019571,2]
[379844032,1755423046179,-480.0,0.00019571,2]
[379844034,1755423046188,-480.0,0.00019571,2]
[379844036,1755423046198,-480.0,0.00019571,2]
[379844038,1755423046212,-348.33,0.00019844,2]
[379844040,1755423046223,-238.96,0.00019845,2]
[379844042,1755423046233,-480.0,0.00019845,2]
[379844044,1755423046243,-421.75,0.00020119,2]
[379844046,1755423046252,-500.0,0.00020473,2]
[379844048,1755423046261,-13.22475314,0.000205,2]
[379844050,1755423046270,-151.0,0.000205,2]
[379844052,1755423046280,-701.460979,0.000205,2]
[379844054,1755423046289,-151.0,0.000205,2]
[379844056,1755423046298,-151.0,0.000205,2]
[379844058,1755423046307,-152.465128,0.000205,2]
[379844060,1755423046316,-151.0,0.000205,2]
[379844062,1755423046327,-151.0,0.000205,2]
[379844064,1755423046336,-153.011688,0.000205,2]
[379844066,1755423046345,-414.834452,0.000205,2]
[379844068,1755423046354,-414.834452,0.000205,2]
[379844070,1755423046364,-304.698896,0.000205,2]
[379844072,1755423046373,-304.698896,0.000205,2]
[379844074,1755423046383,-304.698896,0.000205,2]
[379844076,1755423046392,-151.0,0.000205,2]
[379844078,1755423046403,-151.0,0.000205,2]
[379844080,1755423046412,-247.590088,0.000205,2]
[379844082,1755423046421,-236.7318101,0.000205,2]
[379844125,1755423046913,-67.9670859,0.000205,2]
[379844127,1755423046947,-304.698896,0.000205,2]
[379844129,1755423046989,-304.698896,0.000205,2]
[379844131,1755423047024,-331.889014,0.000205,2]
[379844133,1755423047063,-331.889014,0.000205,2]
[379844135,1755423047085,-331.889014,0.000205,2]
[379844137,1755423047094,-331.889014,0.000205,2]
[379844139,1755423047103,-331.889014,0.000205,2]
[379844141,1755423047113,-331.889014,0.000205,2]
[379844142,1755423047125,-151.0,0.000205,2]
[379844144,1755423047135,-128.7217981,0.000205,2]
[379844147,1755423047146,-22.2782019,0.000205,2]
[379844149,1755423047155,-151.0,0.000205,2]
[379844151,1755423047164,-175.815399,0.000205,2]
[379844153,1755423047173,-175.815399,0.000205,2]
[379844155,1755423047182,-175.815399,0.000205,2]
[379844157,1755423047192,-151.0,0.000205,2]
[379844158,1755423047201,-175.815399,0.000205,2]
[379844160,1755423047215,-151.0,0.000205,2]
[379844162,1755423047224,-22.70612582,0.000205,2]
[379844531,1755423051252,7937.40836936,0.00019406,2]
[379844534,1755423051274,2062.59163064,0.00019406,2]
[379847915,1755423111554,17937.40836936,0.00019471,2]
[379847916,1755423111575,96.33601057,0.00019471,2]
[379847919,1755423137050,559.69179049,0.00019565,2]
[379847933,1755423249708,432.65038236,0.00019471,2]
[379847941,1755423274122,18911.32181658,0.00019471,2]
[379847942,1755423274145,1088.67818342,0.00019471,2]
[379847947,1755423288224,288.982582,0.00018707,2]
[379847966,1755423347833,198.10681987,0.000189,2]
[379847967,1755423380291,776.03,0.00028767,120]
[379847969,1755423405738,1290.0,0.00019565,2]
[379847972,1755423454994,378.5690846,0.0001947,2]
[379847981,1755423542720,203.3112737,0.00019469,2]
[379847983,1755423561593,500.0,0.00018986,2]
[379847989,1755423614912,604.0,0.00019559,2]
[379847990,1755423616802,10349.46195535,0.00019559,2]
[379847993,1755423640224,3681.01387078,0.00019565,2]
[379847995,1755423649279,362.78143341,0.000189,2]
[379847998,1755423672205,331.24794899,0.0001947,2]
[379848015,1755423803396,377.953937,0.00013699,2]
[379848023,1755423864525,157.177868,0.00019471,2]
[379848028,1755423912529,188.71504288,0.00019558,2]
[379848029,1755423912554,113.28495712,0.00019558,2]
[379848032,1755423926036,289.84195541,0.00019469,2]
[379848035,1755423951057,303.37701432,0.000189,2]
[379848036,1755423954051,49497.66,0.00028767,120]
[379848046,1755424012934,823.9346517,0.0001857,2]
[379848073,1755424191613,324.98,0.0001956,3]
[379848076,1755424213291,153.20332232,0.00019558,2]
[379848113,1755424232045,-300.0,0.00019566,2]
[379848115,1755424232055,-300.0,0.00019566,2]
[379848117,1755424232064,-300.0,0.00019566,2]
[379848119,1755424232073,-300.0,0.00019566,2]
[379848121,1755424232083,-300.0,0.00019566,2]
[379848123,1755424232093,-1200.0,0.00019566,2]
[379848124,1755424232102,-500.0,0.00019567,2]
[379848126,1755424232112,-500.0,0.00019567,2]
[379848128,1755424232121,-500.0,0.00019567,2]
[379848130,1755424232131,-500.0,0.00019567,2]
[379848132,1755424232140,-500.0,0.00019567,2]
[379848134,1755424232149,-500.0,0.00019567,2]
[379848136,1755424232159,-538.97560441,0.00019567,2]
[379848138,1755424232168,-500.0,0.00019567,2]
[379848140,1755424232177,-500.0,0.00019567,2]
[379848142,1755424232186,-631.30777753,0.00019567,2]
[379848144,1755424232196,-500.0,0.00019567,2]
[379848146,1755424232205,-501.19654947,0.00019567,2]
[379848148,1755424232215,-500.0,0.00019567,2]
[379848150,1755424232224,-388.15950799,0.00019567,2]
[379848157,1755424232254,-111.84049201,0.00019567,2]
[379848160,1755424232263,-525.0,0.00019567,2]
[379848163,1755424232273,-563.15950799,0.00019567,2]
[379848167,1755424232284,-56.84049201,0.00019567,2]
[379848170,1755424232293,-500.0,0.00019567,2]
[379848173,1755424232303,-500.0,0.00019567,2]
[379848176,1755424232312,-430.0,0.00019567,2]
[379848179,1755424232321,-39.95276508,0.00019567,2]
[379848473,1755424235606,253.61171094,0.00019468,2]
[379848498,1755424238239,-440.04723492,0.00019567,2]
[379848499,1755424238248,-480.0,0.00019567,2]
[379848500,1755424238257,-480.0,0.00019567,2]
[379848501,1755424238267,-480.0,0.00019567,2]
[379848502,1755424238276,-480.0,0.00019567,2]
[379848503,1755424238286,-480.0,0.00019567,2]
[379848504,1755424238295,-223.13492936,0.00019568,2]
[379848505,1755424238307,-256.86507064,0.00019568,2]
[379848506,1755424238317,-480.0,0.00019568,2]